fUSD/lending_fUSD_20240827
["ID","MTS","AMOUNT","RATE_DAILY","PERIOD"]
[336382798,1724799040729,-500.0,0.00010995,2]
[336382799,1724799040739,-500.0,0.00010995,2]
[336382800,1724799040748,-500.0,0.00010995,2]
[336382801,1724799040758,-518.89478355,0.00010995,2]
[336382802,1724799040767,-500.0,0.00010995,2]
[336382803,1724799040777,-500.0,0.00010995,2]
[336382805,1724799040787,-500.0,0.00010995,2]
[336382807,1724799040796,-500.0,0.00010995,2]
[336382808,1724799040806,-500.0,0.00010995,2]
[336382810,1724799040815,-500.0,0.00010995,2]
[336382812,1724799040826,-500.0,0.00010995,2]
[336382814,1724799040835,-125.08263856,0.00010995,2]
[336382817,1724799040848,-374.91736144,0.00010995,2]
[336382819,1724799040861,-216.74511856,0.00010995,2]
[336382821,1724799040874,-283.25488144,0.00010995,2]
[336382823,1724799040883,-8.44511852,0.00010995,2]
[336382826,1724799040905,-491.55488148,0.00010995,2]
[336382828,1724799040914,-500.0,0.00010995,2]
[336382830,1724799040924,-500.0,0.00010995,2]
[336382832,1724799040934,-500.0,0.00010995,2]
[336382834,1724799040944,-266.8731508,0.00010995,2]
[336382836,1724799040953,-500.0,0.00010995,2]
[336382838,1724799040963,-513.90007378,0.00010995,2]
[336382840,1724799040972,-500.0,0.00010995,2]
[336382842,1724799040981,-500.0,0.00010995,2]
[336382844,1724799040991,-536.21468049,0.00010995,2]
[336382846,1724799041000,-500.0,0.00010995,2]
[336382848,1724799041009,-500.0,0.00010995,2]
[336382850,1724799041018,-511.7036677,0.00010995,2]
[336382851,1724799041027,-511.36032854,0.00010995,2]
[336382853,1724799041036,-500.0,0.00010995,2]
[336382855,1724799041046,-500.0,0.00010995,2]
[336382857,1724799041055,-500.0,0.00010995,2]
[336382859,1724799041065,-500.0,0.00010995,2]
[336382861,1724799041074,-500.0,0.00010995,2]
[336382863,1724799041083,-500.0,0.00010995,2]
[336382865,1724799041092,-500.0,0.00010995,2]
[336382867,1724799041101,-500.0,0.00010995,2]
[336382869,1724799041110,-500.0,0.00010995,2]
[336382871,1724799041120,-500.0,0.00010995,2]
[336382873,1724799041129,-596.75312692,0.00010995,2]
[336382875,1724799041139,-601.7645012,0.00010995,2]
[336382877,1724799041152,-500.0,0.00010995,2]
[336382879,1724799041162,-500.0,0.00010995,2]
[336382881,1724799041171,-500.0,0.00010995,2]
[336382883,1724799041181,-500.0,0.00010995,2]
[336382885,1724799041190,-514.11585527,0.00010995,2]
[336382887,1724799041200,-307.1146301,0.00010995,2]
[336382889,1724799041210,-522.48500312,0.00010995,2]
[336382891,1724799041220,-500.0,0.00010995,2]
[336382893,1724799041230,-501.3408192,0.00010995,2]
[336382895,1724799041240,-870.19,0.00010995,2]
[336382897,1724799041250,-1781.01,0.00010995,2]
[336382899,1724799041260,-500.0,0.00010995,2]
[336382901,1724799041270,-283.05916238,0.00010995,2]
[336382903,1724799041279,-523.58,0.00010995,2]
[336382905,1724799041289,-500.0,0.00010995,2]
[336382907,1724799041298,-501.4614659,0.00010995,2]
[336382909,1724799041308,-500.0,0.00010995,2]
[336382911,1724799041318,-232.73799729,0.00010995,2]
[336382913,1724799041328,-500.0,0.00010996,2]
[336382930,1724799041501,-500.0,0.00010996,2]
[336382932,1724799041511,-239.77989132,0.00010996,2]
[336382935,1724799041529,-260.22010868,0.00010996,2]
[336382937,1724799041539,-500.0,0.00010996,2]
[336382939,1724799041549,-500.0,0.00010996,2]
[336382941,1724799041558,-500.0,0.00010996,2]
[336382943,1724799041568,-500.0,0.00010996,2]
[336382945,1724799041579,-500.0,0.00010996,2]
[336382947,1724799041589,-500.0,0.00010996,2]
[336382949,1724799041599,-500.0,0.00010996,2]
[336382951,1724799041609,-500.0,0.00010996,2]
[336382953,1724799041619,-500.0,0.00010996,2]
[336382955,1724799041628,-500.0,0.00010996,2]
[336382957,1724799041638,-500.0,0.00010996,2]
[336382958,1724799041649,-499.42616592,0.00010996,2]
[336382973,1724799041794,-469.16442029,0.00010994,2]
[336382976,1724799041806,-30.83557971,0.00010994,2]
[336382978,1724799041816,-0.57383408,0.00010996,2]
[336382980,1724799041826,-500.0,0.00010996,2]
[336382982,1724799041836,-61.30962621,0.00010996,2]
[336382984,1724799041847,-438.69037379,0.00010996,2]
[336382986,1724799041858,-500.0,0.00010996,2]
[336382988,1724799041868,-264.15014597,0.00010996,2]
[336382991,1724799041889,-23.29318522,0.00010996,2]
[336382993,1724799041903,-326.07556214,0.00010996,2]
[336382996,1724799041933,-173.92443786,0.00010996,2]
[336382998,1724799041944,-500.0,0.00010996,2]
[336383000,1724799041954,-500.0,0.00010996,2]
[336383002,1724799041964,-500.0,0.00010996,2]
[336383004,1724799041974,-500.0,0.00010996,2]
[336383006,1724799041984,-500.0,0.00010996,2]
[336383008,1724799041994,-500.0,0.00010996,2]
[336383010,1724799042004,-500.0,0.00010996,2]
[336383012,1724799042014,-500.0,0.00010996,2]
[336383014,1724799042024,-500.0,0.00010996,2]
[336383016,1724799042033,-500.0,0.00010996,2]
[336383018,1724799042043,-150.0,0.00010997,2]
[336383020,1724799042053,-6.45152325,0.00010997,2]
[336383023,1724799042065,-143.54847675,0.00010997,2]
[336383025,1724799042075,-150.0,0.00010997,2]
[336383026,1724799042084,-150.0,0.00010997,2]
[336383028,1724799042094,-150.0,0.00010997,2]
[336383030,1724799042104,-266.63737734,0.00010997,2]
[336383100,1724799042658,-500.0,0.00010958,2]
[336383102,1724799042668,-171.11,0.00010959,2]
[336383104,1724799042677,-209.0149995,0.00010996,2]
[336383122,1724799042857,-290.9850005,0.00010996,2]
[336383124,1724799042867,-500.0,0.00010996,2]
[336383127,1724799042878,-500.0,0.00010996,2]
[336383128,1724799042887,-500.0,0.00010996,2]
[336383129,1724799042899,-500.0,0.00010996,2]
[336383130,1724799042908,-199.669714,0.00010996,2]
[336383131,1724799042918,-3853.69204404,0.00010997,2]
[336383132,1724799042927,-500.0,0.00010997,2]
[336383133,1724799042936,-500.0,0.00010997,2]
[336383134,1724799042946,-500.0,0.00010997,2]
[336383135,1724799042955,-500.0,0.00010997,2]
[336383136,1724799042964,-500.0,0.00010997,2]
[336383137,1724799042973,-500.0,0.00010997,2]
[336383138,1724799042982,-500.0,0.00010997,2]
[336383139,1724799042991,-513.40193168,0.00010997,2]
[336383140,1724799043001,-500.0,0.00010997,2]
[336383141,1724799043010,-489.65121225,0.00010997,2]
[336383142,1724799043020,-500.0,0.00010997,2]
[336383143,1724799043029,-500.0,0.00010997,2]
[336383144,1724799043039,-528.97428561,0.00010997,2]
[336383145,1724799043048,-524.7203265,0.00010997,2]
[336383146,1724799043058,-500.0,0.00010997,2]
[336383147,1724799043067,-500.0,0.00010997,2]
[336383148,1724799043077,-538.49637268,0.00010997,2]
[336383149,1724799043086,-540.01789334,0.00010997,2]
[336383150,1724799043095,-500.0,0.00010997,2]
[336383151,1724799043104,-500.0,0.00010997,2]
[336383152,1724799043114,-500.0,0.00010997,2]
[336383153,1724799043123,-500.0,0.00010997,2]
[336383154,1724799043132,-500.0,0.00010997,2]
[336383155,1724799043141,-500.0,0.00010997,2]
[336383156,1724799043153,-500.0,0.00010997,2]
[336383157,1724799043162,-500.0,0.00010997,2]
[336383158,1724799043172,-500.0,0.00010997,2]
[336383159,1724799043181,-609.21101097,0.00010997,2]
[336383160,1724799043190,-500.0,0.00010997,2]
[336383161,1724799043199,-500.0,0.00010997,2]
[336383162,1724799043208,-500.0,0.00010997,2]
[336383163,1724799043217,-500.0,0.00010997,2]
[336383164,1724799043226,-500.0,0.00010997,2]
[336383165,1724799043235,-500.0,0.00010997,2]
[336383166,1724799043244,-500.0,0.00010997,2]
[336383167,1724799043254,-500.0,0.00010997,2]
[336383168,1724799043263,-285.52410619,0.00010997,2]
[336383169,1724799043272,-500.0,0.00010997,2]
[336383170,1724799043281,-1017.53,0.00010997,2]
[336383171,1724799043291,-500.0,0.00010997,2]
[336383172,1724799043300,-500.0,0.00010997,2]
[336383174,1724799043310,-500.0,0.00010997,2]
[336383176,1724799043319,-500.0,0.00010997,2]
[336383179,1724799043329,-500.0,0.00010997,2]
[336383182,1724799043339,-663.44,0.00010997,2]
[336383184,1724799043347,-223.57391559,0.00010997,2]
[336383185,1724799043360,-276.42608441,0.00010997,2]
[336383186,1724799043369,-500.0,0.00010997,2]
[336383187,1724799043378,-500.0,0.00010997,2]
[336383188,1724799043387,-529.62,0.00010997,2]
[336383189,1724799043399,-500.0,0.00010997,2]
[336383190,1724799043408,-44.86081003,0.00010997,2]
[336383191,1724799043419,-455.13918997,0.00010997,2]
[336383193,1724799043429,-500.0,0.00010997,2]
[336383195,1724799043438,-500.0,0.00010997,2]
[336383197,1724799043447,-500.0,0.00010997,2]
[336383199,1724799043455,-1714.85,0.00010997,2]
[336383200,1724799043464,-500.0,0.00010997,2]
[336383202,1724799043473,-199.76542482,0.00010997,2]
[336383204,1724799043482,-1184.74,0.00010997,2]
[336383206,1724799043491,-500.0,0.00010997,2]
[336383208,1724799043500,-500.0,0.00010997,2]
[336383210,1724799043509,-514.35,0.00010997,2]
[336383212,1724799043518,-500.0,0.00010997,2]
[336383214,1724799043527,-510.94,0.00010997,2]
[336383216,1724799043535,-500.0,0.00010997,2]
[336383218,1724799043544,-500.0,0.00010997,2]
[336383220,1724799043553,-1019.71,0.00010997,2]
[336383222,1724799043562,-500.0,0.00010997,2]
[336383224,1724799043571,-217.11897429,0.00010997,2]
[336383226,1724799043582,-282.88102571,0.00010997,2]
[336383228,1724799043590,-500.0,0.00010997,2]
[336383230,1724799043599,-500.0,0.00010997,2]
[336383232,1724799043608,-354.79138051,0.00010997,2]
[336383234,1724799043619,-145.20861949,0.00010997,2]
[336383235,1724799043628,-1737.07,0.00010997,2]
[336383237,1724799043638,-500.0,0.00010997,2]
[336383239,1724799043649,-500.0,0.00010997,2]
[336383241,1724799043658,-235.86997466,0.00010997,2]
[336383243,1724799043667,-500.0,0.00010997,2]
[336383245,1724799043678,-1104.11,0.00010997,2]
[336383247,1724799043687,-500.0,0.00010997,2]
[336383249,1724799043696,-500.0,0.00010997,2]
[336383251,1724799043706,-500.0,0.00010997,2]
[336383253,1724799043715,-500.0,0.00010997,2]
[336383255,1724799043724,-500.0,0.00010997,2]
[336383257,1724799043733,-500.0,0.00010997,2]
[336383259,1724799043742,-500.0,0.00010997,2]
[336383261,1724799043751,-277.74140585,0.00010997,2]
[336383263,1724799043764,-222.25859415,0.00010997,2]
[336383265,1724799043774,-500.0,0.00010997,2]
[336383267,1724799043785,-500.0,0.00010997,2]
[336383269,1724799043794,-9.03080125,0.00010997,2]
[336383272,1724799043810,-473.42715917,0.00010997,2]
[336383274,1724799043820,-120.15284083,0.00010997,2]
[336383437,1724799045515,-500.0,0.00010958,2]
[336383438,1724799045524,-500.0,0.00010958,2]
[336383440,1724799045534,-500.0,0.00010958,2]
[336383442,1724799045544,-500.0,0.00010973,2]
[336383444,1724799045555,-500.0,0.00010994,2]
[336383446,1724799045564,-379.84715917,0.00010997,2]
[336383448,1724799045574,-500.0,0.00010997,2]
[336383450,1724799045583,-500.0,0.00010997,2]
[336383452,1724799045593,-500.0,0.00010997,2]
[336383454,1724799045603,-500.0,0.00010997,2]
[336383455,1724799045612,-500.0,0.00010997,2]
[336383457,1724799045622,-522.36684083,0.00010997,2]
[336383459,1724799045633,-564.2637225,0.00010997,2]
[336383471,1724799045750,-933.17494973,0.00010997,2]
[336383473,1724799045763,-3138.13448694,0.00010997,2]
[336383475,1724799045773,-245.24198165,0.00010997,2]
[336383477,1724799045785,-756.76,0.00010997,2]
[336383479,1724799045795,-500.0,0.00010997,2]
[336383481,1724799045804,-500.0,0.00010997,2]
[336383482,1724799045814,-500.0,0.00010997,2]
[336383484,1724799045824,-172.47763871,0.00010997,2]
[336383486,1724799045834,-500.0,0.00010997,2]
[336383488,1724799045844,-500.0,0.00010997,2]
[336383490,1724799045855,-500.0,0.00010997,2]
[336383492,1724799045866,-563.96,0.00010997,2]
[336383494,1724799045876,-500.0,0.00010997,2]
[336383496,1724799045886,-500.0,0.00010997,2]
[336383498,1724799045895,-2463.22,0.00010997,2]
[336383500,1724799045907,-500.0,0.00010997,2]
[336383502,1724799045916,-500.0,0.00010997,2]
[336383504,1724799045926,-500.0,0.00010997,2]
[336383506,1724799045934,-500.0,0.00010997,2]
[336383508,1724799045943,-500.0,0.00010997,2]
[336383510,1724799045953,-500.0,0.00010997,2]
[336383511,1724799045962,-500.0,0.00010997,2]
[336383513,1724799045971,-500.0,0.00010997,2]
[336383515,1724799045981,-500.0,0.00010997,2]
[336383517,1724799045991,-500.0,0.00010998,2]
[336383519,1724799046000,-500.0,0.00010998,2]
[336383521,1724799046010,-500.0,0.00010998,2]
[336383523,1724799046019,-500.0,0.00010998,2]
[336383525,1724799046029,-500.0,0.00010998,2]
[336383527,1724799046039,-500.0,0.00010998,2]
[336383529,1724799046048,-500.0,0.00010998,2]
[336383531,1724799046058,-500.0,0.00010998,2]
[336383533,1724799046067,-500.0,0.00010998,2]
[336383535,1724799046076,-500.0,0.00010998,2]
[336383537,1724799046086,-500.0,0.00010998,2]
[336383539,1724799046095,-500.0,0.00010998,2]
[336383541,1724799046104,-500.0,0.00010998,2]
[336383542,1724799046117,-500.0,0.00010998,2]
[336383544,1724799046125,-500.0,0.00010998,2]
[336383546,1724799046134,-500.0,0.00010998,2]
[336383548,1724799046143,-500.0,0.00010998,2]
[336383549,1724799046156,-500.0,0.00010998,2]
[336383551,1724799046165,-500.0,0.00010998,2]
[336383552,1724799046174,-500.0,0.00010998,2]
[336383554,1724799046183,-500.0,0.00010998,2]
[336383556,1724799046192,-500.0,0.00010998,2]
[336383558,1724799046202,-500.0,0.00010998,2]
[336383560,1724799046212,-274.37123179,0.00010998,2]
[336383682,1724799204896,500.0,0.00024932,120]
[336383683,1724799395091,243.65,9.857e-05,2]
[336383684,1724799406096,250.0,9.857e-05,2]
[336383685,1724799542987,428.09,8.219e-05,2]
[336383686,1724799571644,200.0,9.785e-05,2]
[336383688,1724799728038,1000.0,9.752e-05,2]
[336383689,1724799736108,1000.0,9.774e-05,2]
[336383690,1724799803388,500.0,0.00024932,120]
[336383691,1724799821504,155.0,9.91e-05,2]
[336383692,1724799875282,23900.0,9.835e-05,2]
[336383693,1724799879289,159.19741528,9.91e-05,2]
[336383694,1724799884408,307.97477197,9.91e-05,2]
[336383695,1724799888113,243.56,9.841e-05,2]
[336383696,1724799911482,250.0,9.814e-05,2]
[336383697,1724799912736,3074.12158258,9.91e-05,2]
[336383698,1724799917322,150.0,9.888e-05,2]
[336383699,1724799921092,11899.31493316,9.91e-05,2]
[336383700,1724799924254,694.05179249,9.91e-05,2]
[336383701,1724799978088,1269.04856902,9.91e-05,2]
[336383702,1724800020253,1073.4767841,9.91e-05,2]
[336383705,1724800046270,694.1704637,9.91e-05,2]
[336383706,1724800047101,20413.47648282,9.91e-05,2]
[336383710,1724800054403,291.36870266,9.91e-05,2]
[336383711,1724800057695,360.0,9.814e-05,2]
[336383712,1724800069578,425.87,8.219e-05,2]
[336383713,1724800133096,3435.86055222,8.219e-05,2]
[336383715,1724800156262,691.72339156,8.219e-05,2]
[336383732,1724800207822,-256.72459399,9.943e-05,2]
[336383733,1724800207875,-300.0,9.961e-05,2]
[336383734,1724800207909,-2173.29043241,9.962e-05,2]
[336383736,1724800207957,-2730.0150264,9.962e-05,2]
[336383741,1724800208081,-2730.0150264,9.962e-05,2]
[336383744,1724800208144,-2730.0150264,9.962e-05,2]
[336383746,1724800208189,-2730.0150264,9.962e-05,2]
[336383748,1724800208275,-2692.02379983,9.962e-05,2]
[336383750,1724800208376,-2730.0150264,9.962e-05,2]
[336383752,1724800208419,-1343.61773018,9.962e-05,2]
[336383754,1724800208451,-171.00436811,9.968e-05,2]
[336383756,1724800208482,-370.51643875,0.0001,2]
[336383758,1724800208514,-298.7191451,0.00010009,2]
[336383760,1724800208547,-454.83903396,0.00010026,2]
[336383762,1724800208578,-91.3183103,0.00010068,2]
[336383764,1724800208619,-408.6816897,0.00010068,2]
[336383766,1724800208651,-600.0,0.000101,3]
[336383768,1724800208685,-1300.0,0.000102,3]
[336383770,1724800208718,-421.3333367,0.000103,3]
[336383772,1724800208764,-1578.6666633,0.000103,3]
[336383774,1724800208798,-1151.3483631,0.000104,3]
[336383776,1724800208835,-1548.6516369,0.000104,3]
[336383778,1724800208867,-425.87,0.00010467,2]
[336383779,1724800208898,-755.4933895,0.00010499,2]
[336383782,1724800208941,-966.4166105,0.00010499,2]
[336383784,1724800208973,-1763.5984159,0.000105,3]
[336383807,1724800231810,-1636.4015841,0.000105,3]
[336383809,1724800231819,-171.00436811,0.000105,2]
[336383811,1724800231830,-600.0,0.000106,3]
[336383813,1724800231840,-600.0,0.000107,3]
[336383815,1724800231849,-1387.13397749,0.00010713,2]
[336383817,1724800231859,-346.0545,0.00010758,2]
[336383819,1724800231869,-600.0,0.000108,3]
[336383821,1724800231879,-346.19062434,0.000108,2]
[336383823,1724800231888,-17689.65835276,0.00010848,2]
[336383825,1724800231897,-500.0,0.00010849,2]
[336383827,1724800231907,-150.0,0.00010857,2]
[336383829,1724800231917,-176.86775351,0.00010858,2]
[336383831,1724800231927,-145905.1202,0.00010858,2]
[336383833,1724800231937,-1000.0,0.00010858,2]
[336383835,1724800231946,-4953.5003,0.00010858,2]
[336383837,1724800231955,-296.1084,0.00010858,2]
[336383839,1724800231964,-500.0,0.00010858,2]
[336383841,1724800231974,-3387.16834659,0.00010861,2]
[336383843,1724800231983,-528.11113729,0.00010862,2]
[336383844,1724800231993,-500.0,0.00010867,2]
[336383845,1724800232002,-500.0,0.00010873,2]
[336383846,1724800232012,-500.0,0.00010873,2]
[336383847,1724800232021,-500.0,0.00010873,2]
[336383848,1724800232031,-631.27958502,0.00010873,2]
[336383849,1724800232041,-500.0,0.00010876,2]
[336383850,1724800232051,-299.7782,0.00010877,2]
[336383851,1724800232061,-500.0,0.00010885,2]
[336383852,1724800232071,-156.33827564,0.00010888,2]
[336383853,1724800232081,-1474.1867499,0.00010889,2]
[336383854,1724800232091,-152.62,0.00010889,2]
[336383855,1724800232102,-2333.13793,0.0001089,2]
[336383856,1724800232112,-2333.13793,0.0001089,2]
[336383857,1724800232123,-2333.13793,0.0001089,2]
[336383858,1724800232133,-2333.13793,0.0001089,2]
[336383859,1724800232143,-2333.13794,0.0001089,2]
[336383860,1724800232153,-2333.13793,0.0001089,2]
[336383861,1724800232164,-500.0,0.00010893,2]
[336383862,1724800232174,-48201.56099874,0.00010896,2]
[336383863,1724800232187,-535.8515108,0.00010896,2]
[336383864,1724800232199,-4389.71388745,0.00010896,2]
[336383865,1724800232212,-4755.64962049,0.00010896,2]
[336383866,1724800232222,-2031.59846529,0.00010897,2]
[336383867,1724800232234,-2688.83423824,0.00010897,2]
[336383868,1724800232257,-669.94125223,0.00010897,2]
[336383869,1724800232269,-959.0,0.00010897,2]
[336383870,1724800232283,-5960.955,0.00010897,2]
[336383871,1724800232294,-2584.73800879,0.00010897,2]
[336383872,1724800232306,-2743.0,0.00010897,2]
[336383873,1724800232328,-600.0,0.00010897,2]
[336383874,1724800232339,-571.61940899,0.00010897,2]
[336383875,1724800232351,-1908.19961553,0.00010897,2]
[336383876,1724800232362,-1409.39774727,0.00010897,2]
[336383877,1724800232373,-5371.78642001,0.00010897,2]
[336383878,1724800232384,-1000.0,0.00010897,2]
[336383880,1724800232400,-307.8334,0.00010897,2]
[336383883,1724800232412,-609.67999998,0.00010897,2]
[336383997,1724800237848,-383.30592534,0.00010852,2]
[336383999,1724800237858,-3686.77705373,0.00010897,2]
[336384000,1724800237869,-382.86005199,0.00010897,2]
[336384001,1724800237880,-2730.40354718,0.00010897,2]
[336384002,1724800237891,-468.50164004,0.00010897,2]
[336384003,1724800237903,-2507.13615073,0.00010897,2]
[336384004,1724800237913,-100000.0,0.00010897,2]
[336384005,1724800237922,-1376.69365666,0.00010897,2]
[336384006,1724800237931,-171.12380455,0.00010898,2]
[336384007,1724800237940,-761.8685,0.00010898,2]
[336384008,1724800237950,-500.0,0.00010898,2]
[336384009,1724800238136,-2324.21109593,0.00010899,2]
[336384010,1724800238146,-29103.47352277,0.00010899,2]
[336384011,1724800238157,-29103.47352274,0.00010899,2]
[336384012,1724800238167,-29103.47352274,0.00010899,2]
[336384014,1724800238177,-29103.47352274,0.00010899,2]
[336384016,1724800238186,-29103.47352274,0.00010899,2]
[336384018,1724800238195,-29103.47352274,0.00010899,2]
[336384019,1724800238204,-29103.47352274,0.00010899,2]
[336384021,1724800238214,-29103.47352274,0.00010899,2]
[336384023,1724800238223,-179.65493734,0.00010899,2]
[336384025,1724800238234,-29103.47352274,0.00010899,2]
[336384028,1724800238244,-571.79736471,0.00010899,2]
[336384030,1724800238256,-735.30942749,0.000109,2]
[336384032,1724800238265,-171.12380455,0.000109,2]
[336384034,1724800238274,-1712.97398855,0.000109,2]
[336384035,1724800238283,-1712.97398855,0.000109,2]
[336384037,1724800238294,-1712.97398855,0.000109,2]
[336384039,1724800238303,-1712.97398855,0.000109,2]
[336384041,1724800238313,-1712.97398855,0.000109,2]
[336384043,1724800238323,-1712.97398855,0.000109,2]
[336384045,1724800238332,-1712.97398855,0.000109,2]
[336384047,1724800238342,-1712.97398855,0.000109,2]
[336384049,1724800238351,-600.0,0.000109,3]
[336384051,1724800238361,-735.30942749,0.000109,2]
[336384053,1724800238370,-1336.85406859,0.000109,2]
[336384055,1724800238380,-29103.47352274,0.000109,2]
[336384057,1724800238390,-500.0,0.00010902,2]
[336384059,1724800238402,-500.0,0.00010911,2]
[336384061,1724800238412,-500.0,0.0001092,2]
[336384063,1724800238421,-500.0,0.00010929,2]
[336384065,1724800238431,-500.0,0.00010937,2]
[336384067,1724800238441,-500.0,0.00010946,2]
[336384069,1724800238451,-500.0,0.00010955,2]
[336384071,1724800238460,-150.0,0.00010957,2]
[336384072,1724800238470,-150.0,0.00010957,2]
[336384075,1724800238481,-150.0,0.00010957,2]
[336384076,1724800238490,-150.0,0.00010957,2]
[336384078,1724800238500,-150.0,0.00010957,2]
[336384080,1724800238509,-420.0,0.00010957,2]
[336384082,1724800238518,-500.0,0.00010958,2]
[336384084,1724800238528,-500.0,0.00010958,2]
[336384086,1724800238539,-299.96330156,0.00010958,2]
[336384088,1724800238549,-500.0,0.00010958,2]
[336384090,1724800238558,-500.0,0.00010958,2]
[336384092,1724800238567,-183.27517713,0.00010958,2]
[336384094,1724800238577,-500.0,0.00010958,2]
[336384096,1724800238586,-500.0,0.00010958,2]
[336384098,1724800238596,-500.0,0.00010958,2]
[336384100,1724800238605,-500.0,0.00010958,2]
[336384102,1724800238615,-500.0,0.00010958,2]
[336384104,1724800238625,-500.0,0.00010958,2]
[336384106,1724800238634,-500.0,0.00010958,2]
[336384108,1724800238643,-500.0,0.00010958,2]
[336384109,1724800238652,-500.0,0.00010958,2]
[336384111,1724800238661,-466.19734148,0.00010958,2]
[336384113,1724800238671,-500.0,0.00010958,2]
[336384115,1724800238680,-500.0,0.00010958,2]
[336384117,1724800238690,-848.66,0.00010958,2]
[336384119,1724800238699,-500.0,0.00010958,2]
[336384121,1724800238708,-500.0,0.00010958,2]
[336384123,1724800238718,-500.0,0.00010958,2]
[336384125,1724800238727,-638.1,0.00010958,2]
[336384127,1724800238738,-500.0,0.00010958,2]
[336384128,1724800238748,-500.0,0.00010958,2]
[336384130,1724800238757,-500.0,0.00010958,2]
[336384132,1724800238767,-500.89040562,0.00010958,2]
[336384134,1724800238776,-592.8,0.00010958,2]
[336384136,1724800238788,-1199.6,0.00010958,2]
[336384138,1724800238797,-1192.99,0.00010958,2]
[336384140,1724800238807,-500.0,0.00010958,2]
[336384142,1724800238817,-500.0,0.00010958,2]
[336384144,1724800238826,-528.60343055,0.00010958,2]
[336384146,1724800238835,-532.68786421,0.00010958,2]
[336384148,1724800238844,-195.27421645,0.00010958,2]
[336384149,1724800238854,-500.0,0.00010958,2]
[336384151,1724800238863,-500.0,0.00010958,2]
[336384153,1724800238873,-500.0,0.00010958,2]
[336384156,1724800238883,-500.0,0.00010958,2]
[336384157,1724800238892,-500.0,0.00010958,2]
[336384158,1724800238902,-500.0,0.00010958,2]
[336384159,1724800238911,-524.53703788,0.00010958,2]
[336384160,1724800238921,-500.0,0.00010958,2]
[336384161,1724800238930,-500.0,0.00010958,2]
[336384162,1724800238940,-528.99541033,0.00010958,2]
[336384163,1724800238949,-597.23645183,0.00010958,2]
[336384164,1724800238958,-500.0,0.00010958,2]
[336384165,1724800238967,-520.21791874,0.00010958,2]
[336384166,1724800238976,-193.22676941,0.00010958,2]
[336384167,1724800238985,-509.19721423,0.00010958,2]
[336384168,1724800238994,-599.45281332,0.00010958,2]
[336384169,1724800239004,-500.0,0.00010958,2]
[336384170,1724800239013,-500.0,0.00010958,2]
[336384171,1724800239022,-500.0,0.00010958,2]
[336384172,1724800239031,-500.0,0.00010958,2]
[336384173,1724800239042,-500.0,0.00010958,2]
[336384174,1724800239051,-500.0,0.00010958,2]
[336384175,1724800239060,-500.0,0.00010958,2]
[336384176,1724800239069,-588.43588397,0.00010958,2]
[336384177,1724800239078,-500.0,0.00010958,2]
[336384179,1724800239088,-534.18,0.00010958,2]
[336384180,1724800239098,-538.86327541,0.00010958,2]
[336384182,1724800239107,-519.62496283,0.00010958,2]
[336384184,1724800239116,-243.8164775,0.00010958,2]
[336384186,1724800239125,-500.0,0.00010958,2]
[336384188,1724800239135,-500.0,0.00010958,2]
[336384190,1724800239144,-438.10279608,0.00010958,2]
[336384192,1724800239154,-192.12,0.00010958,2]
[336384194,1724800239163,-500.0,0.00010958,2]
[336384196,1724800239172,-500.0,0.00010958,2]
[336384197,1724800239181,-500.0,0.00010958,2]